bitfinex-derivatives/quotes_ETHF0:USTF0_20220108
["timestamp","ask_amount","ask_price","bid_price","bid_amount"]
[1641676636989,0.8861,3037.8,3037.4,14.17]
[1641676637390,1.54807,3037.8,3037.3,2.00479]
[1641676638190,1.54807,3037.8,3036.8,16.17479]
[1641676638390,2.64691629,3037.8,3036.8,16.17479]
[1641676638590,2.64691629,3037.8,3037.0,14.17]
[1641676638789,0.8861,3037.8,3037.3,3.65062045]
[1641676638990,16.7132,3038.2,3037.3,2.00479]
[1641676639190,4.00958,3038.3,3037.4,14.17]
[1641676640294,1.5,3038.2,3037.3,2.00479]
[1641676640493,5.28353465,3038.3,3037.3,2.00479]
[1641676640793,1.5,3038.2,3037.1,1.64592527]
[1641676640993,1.5,3038.1,3037.1,1.64592527]
[1641676641191,2.1924,3038.1,3036.8,2.00479]
[1641676641392,1.5,3037.3,3036.6,1.64617996]
[1641676641593,0.66197,3037.2,3036.3,5.414]
[1641676641796,0.66197,3037.2,3036.1,0.0823]
[1641676641992,0.66197,3037.2,3035.9,0.08232]
[1641676642193,0.66197,3037.2,3035.9,14.25232]
[1641676642393,1.5,3036.7,3035.9,0.08232]
[1641676642592,0.66197,3036.6,3035.8,2.34906248]
[1641676642803,2.00479,3036.5,3035.8,2.34906248]
[1641676642996,0.66197,3036.4,3035.8,2.34906248]
[1641676643394,1.77453803,3036.4,3035.7,17.82147958]
[1641676643793,1.5,3036.3,3035.7,2.00479]
[1641676643993,0.66197,3036.2,3035.7,2.00479]
[1641676645494,0.66197,3036.2,3035.1,14.17]
[1641676646394,0.66197,3036.2,3035.1,15.81703131]
[1641676646597,2.16197,3036.2,3035.1,15.81703131]
[1641676646796,2.00479,3035.6,3035.1,15.81703131]
[1641676647097,2.00479,3036.5,3035.5,16.23551247]
[1641676647295,2.00479,3036.5,3035.5,2.98431247]
[1641676647899,1.46282365,3036.4,3035.5,2.98431247]
[1641676648097,1.5,3036.3,3035.5,1.33750629]
[1641676648297,1.5,3036.1,3035.5,0.41870629]
[1641676648497,1.5,3036.3,3035.5,0.41870629]
[1641676648698,2.00479,3035.9,3035.5,0.41870629]
[1641676648898,0.93578739,3035.8,3035.5,0.41870629]
[1641676649398,0.66197,3035.7,3035.5,0.41870629]
[1641676649600,0.93578739,3035.8,3035.5,0.41870629]
[1641676650001,2.00479,3035.9,3035.5,0.41870629]
[1641676650202,2.00479,3035.9,3035.5,1.28330629]
[1641676650405,2.00479,3035.9,3035.6,14.17]
[1641676650602,2.00479,3035.9,3035.5,0.41870629]
[1641676651005,1.6800957,3035.8,3035.5,0.41870629]
[1641676651208,1.4414351,3035.9,3035.5,0.41870629]
[1641676652608,1.4414351,3035.9,3035.6,0.66197]
[1641676653010,1.1392867,3035.8,3035.6,0.66197]
[1641676653809,2.00479,3036.5,3035.7,17.31656214]
[1641676654009,2.00479,3036.5,3036.2,14.17]
[1641676654309,2.00479,3036.5,3036.3,14.810787]
[1641676654611,2.00479,3036.5,3036.3,0.66197]
[1641676656316,2.00479,3036.5,3036.4,0.640787]
[1641676657123,1.31753378,3036.7,3036.4,14.810787]
[1641676657315,2.00479,3037.1,3036.6,14.17]
[1641676657515,2.00479,3037.1,3036.5,0.66197]
[1641676657714,0.661969,3037.0,3036.5,0.66197]
[1641676658917,0.661969,3037.0,3036.7,2.00479]
[1641676659116,0.90960468,3036.9,3036.7,2.00479]
[1641676659316,0.90960468,3036.9,3036.7,2.66676]
[1641676659720,0.90960468,3036.9,3036.7,2.00479]
[1641676659918,1.5,3036.8,3036.1,2.00479]
[1641676660117,1.5,3036.8,3035.2,0.08233]
[1641676660317,1.5,3036.4,3035.1,5.414]
[1641676660518,1.5,3036.4,3035.2,1.64693366]
[1641676660820,2.00479,3035.8,3035.2,1.64693366]
[1641676661017,0.661969,3035.7,3035.4,0.640787]
[1641676661617,0.661969,3035.7,3035.0,2.00479]
[1641676662621,2.00479,3035.8,3035.0,2.00479]
[1641676663723,0.661969,3035.7,3035.0,2.00479]
[1641676665228,0.90029928,3035.6,3035.0,2.00479]
[1641676665531,0.90029928,3035.6,3035.1,14.17]
[1641676665933,0.90029928,3035.6,3035.3,0.66197]
[1641676666332,0.90029928,3035.6,3035.3,1.302757]
[1641676666734,2.00479,3035.8,3035.5,15.25067629]
[1641676666931,2.00479,3036.1,3035.5,15.25067629]
[1641676666932,1.64671941,3037.4,3035.5,17.5217957]
[1641676667133,16.9814,3037.3,3035.5,15.87507629]
[1641676667335,0.6924,3037.1,3035.7,15.81668958]
[1641676667934,0.6924,3037.1,3035.7,14.17]
[1641676668134,1.32657721,3037.0,3035.7,14.17]
[1641676668334,1.32657721,3037.0,3035.7,15.81668958]
[1641676668835,1.32657721,3037.0,3035.9,2.00479]
[1641676668836,2.00479,3036.7,3035.9,2.00479]
[1641676669034,0.661969,3036.6,3035.9,2.00479]
[1641676669234,1.514769,3036.6,3035.9,2.00479]
[1641676669435,0.8528,3036.6,3036.0,0.66197]
[1641676669735,0.661969,3036.5,3036.0,1.302757]
[1641676670739,1.46275289,3036.6,3036.0,1.302757]
[1641676671337,2.12472189,3036.6,3036.0,1.302757]
[1641676672137,1.46275289,3036.6,3036.0,1.302757]
[1641676673538,0.661969,3036.5,3036.0,1.302757]
[1641676673741,1.498169,3036.5,3036.0,1.302757]
[1641676673940,0.8362,3036.5,3036.0,1.302757]
[1641676674339,0.8362,3036.5,3036.3,1.64638051]
[1641676674539,2.00479,3036.7,3036.4,14.83197]
[1641676674938,2.00479,3036.7,3036.4,0.66197]
[1641676677745,2.00479,3036.7,3036.4,14.83197]
[1641676677944,0.5,3036.5,3036.4,15.63487]
[1641676678146,16.5874,3038.4,3036.7,14.17]
[1641676678344,4.0,3039.4,3037.0,14.17]
[1641676678345,3.14588463,3038.9,3037.0,14.17]
[1641676678545,17.3104,3038.8,3037.0,14.17]
[1641676678947,2.00479,3037.8,3037.1,2.00479]
[1641676679245,2.00479,3037.8,3037.2,15.472757]
[1641676680345,2.00479,3037.8,3037.4,1.64575461]
[1641676680545,2.00479,3037.8,3037.5,0.66197]
[1641676685851,0.5,3037.6,3037.5,0.66197]
[1641676686953,1.342,3037.6,3037.5,0.66197]
[1641676687151,2.003969,3037.6,3036.8,0.0823]
[1641676687353,2.003969,3037.6,3036.9,0.66197]
[1641676688956,2.003969,3037.6,3037.0,0.640787]
[1641676689154,2.00479,3037.3,3037.0,0.640787]
[1641676689357,3.38000902,3037.3,3037.0,0.640787]
[1641676690556,3.38000902,3037.3,3037.0,1.302757]
[1641676690955,4.04197802,3037.3,3036.7,2.00479]
[1641676691157,4.04197802,3037.3,3036.8,0.66197]
[1641676691555,1.5,3037.2,3036.3,0.0823]
[1641676691758,1.5,3036.9,3036.0,1.64654588]
[1641676691958,1.5,3036.6,3036.0,1.64654588]
[1641676692156,0.661969,3036.5,3036.0,1.64654588]
[1641676692756,1.29719237,3036.4,3036.1,0.66197]
[1641676693157,2.00479,3036.3,3036.1,0.66197]
[1641676695060,2.00479,3036.3,3036.2,0.640787]
[1641676696961,2.00479,3036.3,3035.7,0.08233]
[1641676697158,2.83419,3036.3,3035.8,0.640787]
[1641676698661,3.496159,3036.3,3035.7,0.66197]
[1641676698862,3.496159,3036.3,3035.5,0.41870629]
[1641676699262,3.496159,3036.3,3035.6,0.640787]
[1641676700063,3.496159,3036.3,3035.5,0.41870629]
[1641676700262,4.996159,3036.3,3035.5,0.41870629]
[1641676700462,1.5,3036.1,3035.5,0.41870629]
[1641676700665,1.5,3035.9,3035.5,0.41870629]
[1641676700962,1.34044853,3035.8,3035.5,0.41870629]
[1641676701163,2.00479,3035.6,3035.5,0.41870629]
[1641676701363,2.75269,3035.6,3035.5,0.41870629]
[1641676702464,3.414659,3035.6,3035.5,0.41870629]
[1641676702664,2.75269,3035.6,3035.5,0.41870629]
[1641676702863,2.00479,3035.6,3035.5,0.41870629]
[1641676703265,2.00479,3035.6,3035.5,1.08067629]
[1641676704567,2.00479,3035.6,3035.5,15.25067629]
[1641676704766,20.09301983,3036.3,3035.5,15.77652857]
[1641676704967,18.6193472,3037.6,3036.2,17.31630191]
[1641676705167,16.3464,3037.5,3036.6,16.17479]
[1641676705367,4.0879372,3037.6,3036.6,16.17479]
[1641676705567,4.0879372,3037.6,3036.6,2.00479]
[1641676705768,1.5,3037.1,3036.0,0.0823]
[1641676705967,1.5,3037.1,3035.7,1.6466706]
[1641676705968,2.1924,3037.1,3035.7,3.02918825]
[1641676706170,1.5,3037.1,3035.7,3.02918825]
[1641676706667,1.5,3037.1,3035.7,17.19918825]
[1641676706867,1.22405583,3037.0,3035.7,17.19918825]
[1641676707071,2.00479,3036.4,3035.7,19.20397825]
[1641676707268,2.68539,3036.4,3035.8,1.302757]
[1641676707468,0.661969,3036.3,3035.8,1.82856979]
[1641676707870,2.68539,3036.4,3035.8,1.82856979]
[1641676708669,2.68539,3036.4,3035.8,1.302757]
[1641676708869,2.68539,3036.4,3035.8,2.94940048]
[1641676709270,0.661969,3036.3,3035.8,1.64664348]
[1641676709472,0.661969,3036.3,3035.7,2.00479]
[1641676709871,0.661969,3036.3,3035.9,0.5258058]
[1641676710875,0.661969,3036.3,3035.7,2.00479]
[1641676713384,1.5,3036.2,3035.5,0.41870629]
[1641676713578,2.161969,3036.1,3035.5,0.41870629]
[1641676713779,0.661969,3036.1,3035.5,0.41870629]
[1641676714379,1.59081496,3036.0,3035.5,0.41870629]
[1641676714580,0.661969,3035.9,3035.5,0.41870629]
[1641676715179,2.00479,3035.6,3035.5,0.41870629]
[1641676715381,3.455959,3035.6,3035.5,0.41870629]
[1641676716780,0.7892,3035.6,3035.5,0.41870629]
[1641676716980,2.00479,3036.4,3035.5,0.41870629]
[1641676717283,2.00479,3035.8,3035.5,0.41870629]
[1641676717482,3.09649558,3035.8,3035.5,0.41870629]
[1641676717883,0.661969,3035.7,3035.5,0.41870629]
[1641676719585,2.00479,3035.8,3035.5,0.41870629]
[1641676719788,2.666759,3035.8,3035.5,0.41870629]
[1641676720185,2.666759,3035.8,3035.5,1.07570629]
[1641676720586,3.63509833,3035.8,3035.5,1.07570629]
[1641676721389,3.63509833,3035.8,3035.5,0.41870629]
[1641676721790,2.97312933,3035.8,3035.5,1.08067629]
[1641676721992,2.97312933,3035.8,3035.5,0.41870629]
[1641676723592,0.661969,3035.7,3035.5,0.41870629]
[1641676723794,1.427269,3035.7,3035.5,0.41870629]
[1641676723994,0.7653,3035.7,3035.5,0.41870629]
[1641676724292,0.7653,3035.7,3035.6,1.64671127]
[1641676724492,0.7653,3035.7,3035.5,0.41870629]
[1641676724692,0.7653,3035.7,3035.6,0.66197]
[1641676724895,2.00479,3036.4,3035.6,0.66197]
[1641676725293,2.00479,3036.4,3035.8,2.00479]
[1641676725493,0.661969,3036.3,3035.8,2.00479]
[1641676725693,1.345569,3036.3,3035.8,2.00479]
[1641676726294,1.345569,3036.3,3035.8,2.66676]
[1641676726793,0.6836,3036.3,3035.8,2.66676]
[1641676726992,2.00479,3036.4,3035.8,2.66676]
[1641676728292,2.00479,3036.4,3035.8,4.31341433]
[1641676728493,2.00479,3036.4,3035.9,14.17]
[1641676728693,2.00479,3036.9,3036.1,1.64647268]
[1641676728893,1.5,3036.6,3035.8,2.00479]
[1641676729094,2.66159,3036.9,3035.8,2.00479]
[1641676729293,2.00479,3036.4,3035.8,2.00479]
[1641676729492,2.666759,3036.4,3035.8,2.66676]
[1641676730097,1.25901488,3036.3,3035.8,2.66676]
[1641676730693,1.25901488,3036.3,3035.8,3.307547]
[1641676731095,2.666759,3036.4,3035.8,3.307547]
[1641676731294,2.00479,3036.4,3035.8,3.307547]
[1641676731594,2.00479,3036.9,3036.0,1.64654859]
[1641676732196,1.53565649,3036.8,3036.0,1.64654859]
[1641676732396,1.53565649,3036.8,3036.1,0.66197]
[1641676733196,1.53565649,3036.8,3036.4,2.00479]
[1641676733396,1.53565649,3036.8,3036.4,2.80989]
[1641676733596,1.53565649,3036.8,3036.5,1.302757]
[1641676734800,2.00479,3036.9,3036.5,1.302757]
[1641676734999,17.6976,3037.3,3036.6,15.8162179]
[1641676735201,2.00479,3037.4,3036.7,0.66197]
[1641676735400,2.00479,3037.7,3037.1,14.17]
[1641676735600,2.00479,3037.7,3037.2,0.640787]
[1641676735898,2.00479,3037.7,3037.3,0.66197]
[1641676736800,2.00479,3037.7,3037.3,14.83197]
[1641676738003,2.00479,3038.1,3037.3,14.83197]
[1641676738205,2.00479,3038.1,3037.3,0.66197]
[1641676738404,2.00479,3038.1,3037.3,2.30778691]
[1641676739408,2.00479,3038.1,3037.6,2.00479]
[1641676739608,2.00479,3038.1,3037.7,0.66197]
[1641676740707,0.94818906,3038.0,3037.7,0.66197]
[1641676743512,2.00479,3038.1,3037.7,0.66197]
[1641676746814,2.00479,3038.1,3037.8,14.17]
[1641676747114,2.0831472,3039.1,3038.0,1.64541341]
[1641676747314,19.34979,3039.0,3038.3,2.00479]
[1641676747516,0.661969,3038.9,3038.4,0.66197]
[1641676748317,1.28282591,3038.8,3038.4,0.66197]
[1641676748720,1.94479491,3038.8,3038.3,2.00479]
[1641676748917,1.94479491,3038.8,3038.3,2.66676]
[1641676750720,1.94479491,3038.8,3038.3,2.00479]
[1641676752421,1.94479491,3038.8,3038.3,2.66676]
[1641676754426,2.00479,3039.0,3038.3,17.51096]
[1641676754625,2.00479,3039.0,3038.3,19.23847098]
[1641676754825,0.661969,3038.9,3038.3,4.98621098]
[1641676755227,2.00479,3039.0,3038.3,4.98621098]
[1641676756029,2.00479,3039.0,3038.4,14.17]
[1641676756427,2.00479,3039.0,3038.5,14.83197]
[1641676756828,2.00479,3039.0,3038.7,14.17]
[1641676757029,2.00479,3039.3,3038.9,14.17]
[1641676757229,17.2152,3040.2,3038.9,14.17]
[1641676757428,2.00479,3039.9,3039.2,2.00479]
[1641676757730,17.522,3040.3,3039.4,14.17]
[1641676757930,17.522,3040.3,3039.6,14.17]
[1641676758131,17.522,3040.3,3039.7,14.83197]
[1641676758530,3.8191032,3041.2,3039.9,1.5]
[1641676758531,2.0831472,3041.0,3039.9,1.5]
[1641676758731,2.0831472,3041.0,3040.2,15.81416355]
[1641676759331,2.0831472,3041.0,3040.7,2.00479]
[1641676759532,0.661969,3040.9,3040.7,2.88159]
[1641676759732,1.5,3040.8,3040.7,0.8768]
[1641676759931,0.661969,3040.8,3039.3,1.5]
[1641676760132,0.661969,3040.8,3039.5,1.64462053]
[1641676760332,1.76850657,3040.8,3040.0,1.6443555]
[1641676760735,1.76850657,3040.8,3040.1,1.302757]
[1641676760933,1.76850657,3040.8,3039.4,0.08222]
[1641676760934,1.76850657,3040.8,3039.6,0.6561]
[1641676761134,1.76850657,3040.8,3039.7,0.08222]
[1641676761335,2.00479,3040.7,3040.0,2.00479]
[1641676761535,0.661969,3040.6,3040.0,2.00479]
[1641676761734,0.661969,3040.6,3040.1,0.66197]
[1641676762937,0.661969,3040.6,3040.0,2.00479]
[1641676764640,0.661969,3040.6,3040.1,0.66197]
[1641676765238,0.661969,3040.6,3040.0,2.00479]
[1641676765641,1.311069,3040.6,3039.7,2.00479]
[1641676765842,1.311069,3040.6,3040.0,1.64432846]
[1641676766040,1.311069,3040.6,3039.7,2.00479]
[1641676766642,1.311069,3040.6,3039.9,14.17]
[1641676766843,0.661969,3040.6,3040.1,1.64429602]
[1641676767342,0.661969,3040.6,3040.4,2.00479]
[1641676767545,1.10653757,3040.8,3040.4,2.00479]
[1641676767741,0.661969,3040.8,3040.4,2.00479]
[1641676768844,4.00958,3041.4,3040.6,1.5]
[1641676769043,4.00958,3041.4,3040.7,14.892977]
[1641676769443,4.00958,3041.4,3040.8,2.66676]
[1641676769843,4.00958,3041.4,3040.9,1.64387975]
[1641676770047,4.00958,3041.4,3041.0,0.66197]
[1641676777359,0.97131474,3041.6,3041.0,0.66197]
[1641676777560,1.63328374,3041.6,3041.0,0.66197]
[1641676777760,1.63328374,3041.6,3040.8,3.6487238]
[1641676777959,1.5,3041.4,3040.8,2.00479]
[1641676778161,2.161969,3041.3,3040.4,1.64416084]
[1641676778361,2.161969,3041.3,3039.3,0.08221]
[1641676778660,2.161969,3041.3,3039.3,1.58221]
[1641676778864,3.42066988,3041.3,3039.6,14.17]
[1641676779062,3.42066988,3041.3,3038.8,17.46422]
[1641676779063,1.5,3040.9,3038.8,17.46422]
[1641676779262,2.38910447,3040.9,3039.5,1.64462053]
[1641676779560,0.7443,3040.9,3039.7,3.14450694]
[1641676779761,0.7443,3040.9,3039.7,3.22672694]
[1641676779961,1.0731621,3040.8,3039.7,17.39672694]
[1641676780160,1.0731621,3040.8,3039.7,1.64450694]
[1641676780761,1.0731621,3040.8,3039.6,2.00479]
[1641676780961,1.0731621,3040.8,3040.1,1.64430413]
[1641676781160,0.661969,3040.7,3040.2,0.640787]
[1641676781562,0.661969,3040.7,3040.3,2.00479]
[1641676781761,0.661969,3040.7,3039.6,2.00479]
[1641676782764,1.5,3040.5,3039.6,2.00479]
[1641676782964,2.50925588,3040.8,3039.6,2.00479]
[1641676783364,4.00925588,3040.8,3039.6,2.00479]
[1641676783567,2.00479,3040.3,3039.6,2.00479]
[1641676783765,0.661969,3040.2,3039.6,2.00479]
[1641676783968,2.161969,3040.2,3039.3,2.00479]
[1641676784166,2.161969,3040.2,3038.8,1.64502093]
[1641676785466,2.00479,3039.5,3038.8,1.64502093]
[1641676785666,2.00479,3039.5,3038.9,0.640787]
[1641676785667,1.10368109,3039.4,3038.9,0.640787]
[1641676785867,1.76565009,3039.4,3038.9,1.302757]
[1641676786471,1.76565009,3039.4,3038.9,0.66197]
[1641676788069,1.76565009,3039.4,3038.9,1.302757]
[1641676788871,1.10368109,3039.4,3038.9,1.302757]
[1641676790172,2.00479,3039.5,3038.9,16.972757]
[1641676790371,2.00479,3039.5,3039.0,0.08225]
[1641676790570,2.00479,3039.5,3039.1,0.66197]
[1641676790770,2.00479,3039.5,3039.4,1.64459348]
[1641676791170,2.00479,3039.5,3039.4,2.30656348]
[1641676791371,2.00479,3039.5,3039.4,17.97656348]
[1641676791673,4.00958,3040.3,3039.4,0.66197]
[1641676791870,4.00958,3040.3,3039.5,0.08223]
[1641676792072,0.661969,3040.2,3039.6,0.640787]
[1641676792672,0.661969,3040.2,3039.6,1.302757]
[1641676792871,4.00958,3040.3,3039.6,1.302757]
[1641676793073,4.00958,3040.3,3039.7,14.17]
[1641676793272,4.00958,3040.3,3039.8,0.66197]
[1641676794274,4.671549,3040.3,3039.8,0.66197]
[1641676796080,6.171549,3040.3,3039.6,0.640787]
[1641676796278,6.984749,3040.3,3039.5,1.64464217]
[1641676796678,5.484749,3040.3,3039.6,0.66197]
[1641676796883,5.484749,3040.3,3039.6,1.302757]
[1641676797280,5.484749,3040.3,3039.5,1.64464217]
[1641676797481,5.484749,3040.3,3039.1,4.00958]
[1641676797681,5.484749,3040.3,3039.1,5.6543953]
[1641676797881,4.671549,3040.3,3039.1,5.6543953]
[1641676798282,4.671549,3040.3,3039.1,19.8243953]
[1641676799884,16.5176,3041.2,3040.2,1.64420951]
[1641676800183,17.5273,3041.5,3040.2,2.40730951]
[1641676800985,1.12067407,3041.4,3040.2,2.40730951]
[1641676801185,17.5273,3041.5,3040.5,1.64409327]
[1641676801587,2.0831472,3042.0,3041.3,1.64364739]
[1641676801887,2.0831472,3042.0,3041.4,1.302757]
[1641676802086,2.0831472,3042.0,3041.5,1.64352042]
[1641676802286,19.3719472,3042.5,3041.6,0.66197]
[1641676802484,2.0831472,3042.5,3041.6,0.66197]
[1641676803087,2.0831472,3042.5,3041.3,0.7708]
[1641676803287,2.0831472,3042.5,3040.8,1.5]
[1641676803490,2.0831472,3042.5,3040.7,0.77458]
[1641676803491,2.0831472,3042.5,3041.9,1.64333946]
[1641676803686,2.0831472,3042.5,3042.0,3.307547]
[1641676803887,2.00479,3042.7,3042.1,0.08217]
[1641676804087,2.00479,3042.7,3042.0,3.307547]
[1641676804088,2.00479,3042.7,3042.2,0.66197]
[1641676804288,2.666759,3042.7,3042.2,0.66197]
[1641676804490,2.666759,3042.7,3042.0,2.00479]
[1641676804690,2.666759,3042.7,3042.1,0.66197]
[1641676805290,2.00479,3042.7,3042.1,0.66197]
[1641676805791,2.00479,3042.7,3042.2,0.640787]
[1641676805990,2.00479,3042.7,3042.0,2.00479]
[1641676805991,0.661969,3042.6,3042.0,2.00479]
[1641676806191,0.661969,3042.6,3042.1,0.66197]
[1641676806993,2.00479,3042.7,3042.1,0.66197]
[1641676807592,1.5,3043.0,3042.2,14.17]
[1641676807794,1.5,3043.0,3042.3,15.554907]
[1641676807992,1.5,3043.0,3042.3,1.384907]
[1641676808193,2.33573946,3043.6,3042.3,1.384907]
[1641676808392,1.5,3043.1,3042.3,1.302757]
[1641676808592,51.9936,3043.8,3042.4,1.64304785]
[1641676808794,51.9936,3043.8,3043.0,1.64274016]
[1641676808992,1.55041727,3044.0,3043.1,0.66197]
[1641676809595,2.00479,3043.7,3043.1,0.66197]
[1641676809793,2.00479,3043.7,3043.2,0.640787]
[1641676809992,3.55520727,3044.0,3043.3,0.66197]
[1641676810197,2.00479,3044.0,3043.4,1.64254048]
[1641676810397,2.00479,3044.0,3043.5,0.66197]
[1641676810796,2.00479,3044.0,3043.6,1.64238672]
[1641676810998,17.94567619,3044.4,3043.7,0.66197]
[1641676811196,0.24167619,3044.4,3043.7,1.33897]
[1641676811397,0.24167619,3044.4,3044.2,14.17]
[1641676811596,0.24167619,3044.4,3044.3,18.84155]
[1641676811797,0.23967619,3044.4,3044.3,19.482337]
[1641676812100,2.0831472,3044.6,3044.3,19.482337]
[1641676812297,2.7775296,3044.8,3044.5,1.5]
[1641676812598,2.08178499,3045.3,3044.7,14.17]
[1641676812897,2.08178499,3045.3,3045.0,1.64167221]
[1641676813096,2.08178499,3045.3,3045.1,0.66197]
[1641676813601,2.08178499,3045.3,3044.6,1.72399593]
[1641676813898,1.5,3044.9,3044.3,2.00479]
[1641676814097,2.69678499,3045.3,3043.3,0.08211]
[1641676814297,17.2703,3045.2,3043.0,14.25212]
[1641676814701,1.5,3044.6,3043.0,0.08212]
[1641676814900,1.5,3043.9,3042.8,1.38251765]
[1641676815102,0.9372,3043.9,3042.8,1.38251765]
[1641676815504,1.5,3043.8,3042.9,1.64280493]
[1641676815704,2.00479,3043.2,3042.8,1.38251765]
[1641676815904,2.00479,3043.2,3042.9,1.302757]
[1641676816104,36.3001,3044.5,3042.9,1.302757]
[1641676816105,34.8001,3044.5,3042.9,1.302757]
[1641676816304,1.5,3044.0,3043.2,1.64262682]
[1641676816503,1.5,3043.5,3042.9,0.640787]
[1641676816703,1.5,3043.9,3043.0,0.66197]
[1641676816903,0.96337791,3043.4,3043.0,0.66197]
[1641676817103,1.5,3044.0,3043.0,0.66197]
[1641676817706,2.00479,3043.5,3043.0,0.66197]
[1641676818509,2.00479,3043.8,3043.0,0.66197]
[1641676818710,2.00479,3043.8,3043.0,1.34917]
[1641676818909,16.9562,3044.5,3043.0,15.51917]
[1641676819109,16.9562,3044.5,3043.2,14.17]
[1641676819309,17.2703,3045.2,3043.3,0.08212]
[1641676819710,2.00479,3044.7,3044.0,2.00479]
[1641676819912,2.00479,3045.0,3044.4,14.17]
[1641676820210,34.9226,3045.6,3044.5,14.17]
[1641676820411,17.891,3045.6,3044.6,0.0821]
[1641676820615,18.0407,3045.9,3044.8,1.64176115]
[1641676820812,0.94498158,3046.0,3045.0,1.64163448]
[1641676821413,0.94498158,3046.0,3044.8,14.7647]
[1641676821615,2.00479,3045.8,3045.1,2.00479]
[1641676821811,0.661969,3045.7,3045.1,2.00479]
[1641676822213,0.661969,3045.7,3045.2,0.640787]
[1641676822613,1.5,3045.6,3045.1,2.00479]
[1641676822814,0.661969,3045.5,3045.1,2.00479]
[1641676823414,1.5,3045.4,3044.3,1.64204961]
[1641676823714,2.00479,3045.0,3044.3,3.64683961]
[1641676823914,2.00479,3045.0,3044.4,0.66197]
[1641676824113,2.666759,3045.0,3044.4,0.66197]
[1641676824314,2.666759,3045.0,3044.5,0.640787]
[1641676825316,2.666759,3045.0,3044.5,1.443087]
[1641676825518,2.666759,3045.0,3044.5,2.105057]
[1641676826319,1.63605816,3044.9,3044.5,2.105057]
[1641676826518,0.661969,3044.8,3044.5,0.8023]
[1641676826717,2.161969,3044.8,3043.9,1.64223028]
[1641676826918,0.661969,3044.8,3043.9,1.64223028]
[1641676827118,2.161969,3044.8,3043.2,0.08211]
[1641676827319,2.161969,3044.8,3043.8,1.64228692]
[1641676827720,2.00479,3044.3,3043.8,1.64228692]
[1641676827922,2.666759,3044.3,3043.8,2.28307392]
[1641676828120,2.666759,3044.3,3043.6,3.6471983]
[1641676828521,2.666759,3044.3,3043.6,2.00479]
[1641676829122,2.666759,3044.3,3043.6,2.66676]
[1641676829823,2.666759,3044.3,3043.7,0.640787]
[1641676830424,2.666759,3044.3,3043.7,2.28316832]
[1641676831225,1.5,3044.1,3043.3,1.64257556]
[1641676831427,1.5,3043.4,3042.2,0.08212]
[1641676831627,2.00479,3042.9,3042.1,2.00479]
[1641676831826,0.661969,3042.8,3042.1,2.00479]
[1641676832224,0.661969,3042.8,3042.2,1.302757]
[1641676832627,3.24704277,3042.9,3042.2,1.302757]
[1641676832828,2.00479,3043.2,3042.6,1.64279143]
[1641676833025,1.64279143,3044.4,3042.7,2.16197]
[1641676833226,1.64279143,3044.4,3042.8,14.17]
[1641676833426,1.64279143,3044.4,3043.0,14.17]
[1641676833626,2.00479,3043.9,3043.2,2.00479]
[1641676833829,2.00479,3043.9,3043.2,2.66676]
[1641676834228,2.00479,3043.9,3043.3,0.640787]
[1641676834428,0.661969,3043.8,3043.4,2.238622]
[1641676834630,2.00479,3043.9,3043.3,0.640787]
[1641676834828,2.00479,3043.9,3043.5,14.83197]
[1641676835828,2.00479,3044.2,3043.5,14.83197]
[1641676836628,1.42374056,3044.9,3043.5,14.83197]
[1641676836831,1.42374056,3044.9,3043.8,1.64216825]
[1641676837029,1.64216826,3045.8,3043.8,1.64216825]
[1641676837030,19.36744446,3045.9,3044.3,14.17]
[1641676837229,35.73874446,3045.9,3044.3,14.17]
[1641676837632,34.0968,3045.9,3044.3,14.17]
[1641676837830,2.00479,3045.1,3044.5,14.17]
[1641676838030,2.00479,3045.1,3044.6,15.472757]
[1641676838431,2.00479,3045.4,3044.6,15.472757]
[1641676838631,2.00479,3045.4,3044.8,14.17]
[1641676838831,2.00479,3045.4,3045.0,1.64149974]
[1641676839030,2.00479,3045.4,3044.9,0.0821]
[1641676839230,2.00479,3045.4,3044.7,1.6416749]
[1641676839429,2.00479,3045.4,3044.8,0.66197]
[1641676839832,2.00479,3045.4,3044.9,2.00479]
[1641676840035,0.661969,3045.3,3044.9,2.00479]
[1641676840834,0.661969,3045.3,3044.8,0.66197]
[1641676841033,2.00479,3045.4,3044.9,0.66197]
[1641676841234,2.00479,3045.4,3044.9,14.83197]
[1641676841433,2.00479,3045.4,3045.0,0.08208]
[1641676841633,2.00479,3045.4,3045.1,0.66197]
[1641676842433,2.00479,3045.4,3045.1,14.83197]
[1641676843037,2.00479,3045.4,3045.1,16.4734401]
[1641676843435,2.00479,3046.0,3045.1,16.4734401]
[1641676843634,2.00479,3046.0,3045.4,14.17]
[1641676843835,2.00479,3046.0,3045.6,14.17]
[1641676844034,0.4949,3047.0,3045.6,14.987]
[1641676844233,1.5,3047.1,3045.7,0.08205]
[1641676844434,1.27024587,3047.1,3045.7,0.08205]
[1641676845134,1.27024587,3047.1,3045.6,14.987]
[1641676845536,0.5,3045.8,3045.7,0.08205]
[1641676845735,3.911859,3045.8,3045.0,1.64152938]
[1641676846436,1.5,3045.2,3044.0,1.64192289]
[1641676846635,1.5,3045.6,3044.0,1.64192289]
[1641676847035,1.5,3044.9,3043.7,0.0821]
[1641676847236,0.8193,3044.9,3043.7,0.0821]
[1641676847437,0.8193,3044.9,3043.9,1.5]
[1641676847637,0.8193,3044.9,3044.0,0.08211]
[1641676847839,2.00479,3045.4,3044.7,2.00479]
[1641676848037,2.00479,3045.4,3044.8,1.302757]
[1641676848642,0.661969,3045.3,3044.8,1.302757]
[1641676849238,0.661969,3045.3,3044.8,15.472757]
[1641676849439,2.00479,3045.4,3044.8,1.302757]